Workbook

Sheet Sheet1
B1: Derivative of y = sin (x)
B3: This DIGMath unit explores
C4: the derivative function of
D5: y = sin (x)
B6: on any interval from x = a to x = b.
A8: The function in terms of x: f'(x) = | F8: sin(x)
A11: Now enter the interval for x:
C12: xMin = | D12: -6.28
C13: xMax = | D13: 6.28
A16: Click each item below for suggestions and investigations
C17: Item 1 | I17: Trace along all the curves: | M17: 188 | P17: x = | Q17: =M17/50-3.14 -> 0.62 | R17: y = | S17: =Sheet2!M4 -> 0.54
C18: Item 2
C19: Item 3
C20: Item 4
C21: Item 5
A25: To access/download all the DIGMath Apps for Calculus
A26: Click this link: | C26: DIGMath for Calculus
A28: Created by: Sheldon P. Gordon
A29: Farmingdale State College
A30: Development of this module was supported by the
A31: NSF's Division of Undergraduate Education
A32: under grants DUE-0310123 and DUE-0442160.
R45: y' = | S45: =Sheet2!M10 -> 0.84
R82: Error = | S82: =Sheet2!M16 -> 0.000003

Sheet Sheet2
C1: x | D1: y = f(x) | E1: x+.00001 | F1: f(x+0.00001) | G1: AppDeriv | I1: Actual | J1: Diff | L1: verticals
D2: =Sheet1!#REF! ->  | I2: Deriv
C3: =Sheet1!D12 -> -6.28 | D3: =SIN(x) -> 0.003185301793 | E3: =x+0.00001 -> -6.27999 | F3: =SIN((x+0.00001)) -> 0.003195301742 | G3: =(F3-D3)/dxx -> 0.9999949109 | I3: =COS(x) -> 0.9999949269 | J3: =I3-G3 -> 1.598103816e-08 | L3: =x0 -> 0.62 | M3: 0
C4: =C3+Sheet2!B$12 -> -6.2172 | D4: 0.0659374336 | E4: -6.21719 | F4: 0.06594741183 | G4: 0.9978234297 | I4: 0.9978237594 | J4: =I4-G4 -> 3.297423129e-07 | L4: =L3 -> 0.62 | M4: =LOOKUP(x0,C3:C203,D3:D203) -> 0.535584723
C5: =C4+Sheet2!B$12 -> -6.1544 | D5: 0.1284296042 | E5: -6.15439 | F5: 0.1284395213 | G5: 0.9917179856 | I5: 0.9917186278 | J5: 6.422031313e-07
C6: =C5+Sheet2!B$12 -> -6.0916 | D6: 0.1904154354 | E6: -6.09159 | F6: 0.1904252524 | G6: 0.9817026498 | I6: 0.9817036019 | J6: 9.521287957e-07 | L6: =L4 -> 0.62 | M6: =M4 -> 0.535584723
C7: =C6+Sheet2!B$12 -> -6.0288 | D7: 0.2516505453 | E7: -6.02879 | F7: 0.2516602235 | G7: 0.967816908 | I7: 0.9678181663 | J7: 1.258307503e-06
C8: =C7+Sheet2!B$12 -> -5.966 | D8: 0.311893512 | E8: -5.96599 | F8: 0.3119030131 | G8: 0.9501155055 | I8: 0.950117065 | J8: 1.55951626e-06 | L8: Derivative
C9: =C8+Sheet2!B$12 -> -5.9032 | D9: 0.3709068247 | E9: -5.90319 | F9: 0.3709161114 | G9: 0.9286682308 | I9: 0.9286700853 | J9: 1.85458446e-06 | L9: =x0 -> 0.62 | M9: 0
C10: =C9+Sheet2!B$12 -> -5.8404 | D10: 0.4284578209 | E10: -5.84039 | F10: 0.4284668565 | G10: 0.9035596407 | I10: 0.903561783 | J10: 2.142339606e-06 | L10: =L9 -> 0.62 | M10: =LOOKUP(x0,C3:C203,G3:G203) -> 0.8444788224
C11: =C10+Sheet2!B$12 -> -5.7776 | D11: 0.4843196033 | E11: -5.77759 | F11: 0.4843283522 | G11: 0.8748887269 | I11: 0.8748911486 | J11: 2.42164287e-06
A12: delta x = | B12: =(xMax-xMin)/200 -> 0.0628 | C12: =C11+Sheet2!B$12 -> -5.7148 | D12: 0.5382719344 | E12: -5.71479 | F12: 0.5382803621 | G12: 0.8427685259 | I12: 0.8427712173 | J12: 2.691407705e-06 | L12: =L9 -> 0.62 | M12: =M10 -> 0.8444788224
C13: =C12+Sheet2!B$12 -> -5.652 | D13: 0.5901021047 | E13: -5.65199 | F13: 0.5901101779 | G13: 0.8073256728 | I13: 0.8073286233 | J13: 2.950552546e-06
C14: =C13+Sheet2!B$12 -> -5.5892 | D14: 0.6396057714 | E14: -5.58919 | F14: 0.6396134584 | G14: 0.7686999027 | I14: 0.7687031008 | J14: 3.19806255e-06 | L14: Error
A15: dxx = | B15: =0.00001 -> 1e-05 | C15: =C14+Sheet2!B$12 -> -5.5264 | D15: 0.6865877643 | E15: -5.52639 | F15: 0.6865950347 | G15: 0.7270434995 | I15: 0.7270469324 | J15: 3.432974861e-06 | L15: =x0 -> 0.62 | M15: 0
C16: =C15+Sheet2!B$12 -> -5.4636 | D16: 0.7308628546 | E16: -5.46359 | F16: 0.7308696798 | G16: 0.6825206952 | I16: 0.6825243495 | J16: 3.654349983e-06 | L16: =L15 -> 0.62 | M16: =LOOKUP(x0,C3:C203,J3:J209) -> 2.677943089e-06
C17: =C16+Sheet2!B$12 -> -5.4008 | D17: 0.772256486 | E17: -5.40079 | F17: 0.7722628391 | G17: 0.6353070231 | I17: 0.6353108844 | J17: 3.861309216e-06
C18: =C17+Sheet2!B$12 -> -5.338 | D18: 0.8106054622 | E18: -5.33799 | F18: 0.8106113181 | G18: 0.585588625 | I18: 0.5855926781 | J18: 4.053059692e-06 | L18: =L15 -> 0.62 | M18: =M16 -> 2.677943089e-06
C19: =C18+Sheet2!B$12 -> -5.2752 | D19: 0.8457585907 | E19: -5.27519 | F19: 0.8457639263 | G19: 0.533561518 | I19: 0.5335657469 | J19: 4.228826542e-06
C20: =C19+Sheet2!B$12 -> -5.2124 | D20: 0.8775772788 | E20: -5.21239 | F20: 0.8775820731 | G20: 0.4794308213 | I20: 0.4794352092 | J20: 4.387909897e-06
C21: =C20+Sheet2!B$12 -> -5.1496 | D21: 0.9059360797 | E21: -5.14959 | F21: 0.9059403138 | G21: 0.4234099474 | I21: 0.4234144771 | J21: 4.529704953e-06
C22: =C21+Sheet2!B$12 -> -5.0868 | D22: 0.9307231878 | E22: -5.08679 | F22: 0.930726845 | G22: 0.3657197612 | I22: 0.3657244149 | J22: 4.653631575e-06
C23: =C22+Sheet2!B$12 -> -5.024 | D23: 0.9518408788 | E23: -5.02399 | F23: 0.9518439447 | G23: 0.3065877087 | I23: 0.306592468 | J23: 4.759226395e-06
C24: =C23+Sheet2!B$12 -> -4.9612 | D24: 0.9692058952 | E24: -4.96119 | F24: 0.9692083577 | G24: 0.2462469207 | I24: 0.2462517668 | J24: 4.846044603e-06
C25: =C24+Sheet2!B$12 -> -4.8984 | D25: 0.9827497747 | E25: -4.89839 | F25: 0.9827516241 | G25: 0.1849352934 | I25: 0.1849402072 | J25: 4.913753718e-06
C26: =C25+Sheet2!B$12 -> -4.8356 | D26: 0.99241912 | E26: -4.83559 | F26: 0.992420349 | G26: 0.1228945506 | I26: 0.1228995127 | J26: 4.962101754e-06
C27: =C26+Sheet2!B$12 -> -4.7728 | D27: 0.9981758092 | E27: -4.77279 | F27: 0.9981764129 | G27: 0.06036929052 | I27: 0.0603742814 | J27: 4.990882631e-06
C28: =C27+Sheet2!B$12 -> -4.71 | D28: 0.9999971464 | E28: -4.70999 | F28: 0.9999971224 | G28: -0.002393978105 | I28: -0.002388978112 | J28: 4.999992356e-06
C29: =C28+Sheet2!B$12 -> -4.6472 | D29: 0.9978759508 | E29: -4.64719 | F29: 0.9978752993 | G29: -0.06514780835 | I29: -0.06514281898 | J29: 4.98937003e-06
C30: =C29+Sheet2!B$12 -> -4.5844 | D30: 0.9918205853 | E30: -4.58439 | F30: 0.9918193089 | G30: -0.1276447905 | I30: -0.1276398314 | J30: 4.959091492e-06
C31: =C30+Sheet2!B$12 -> -4.5216 | D31: 0.9818549235 | E31: -4.52159 | F31: 0.9818530271 | G31: -0.1896385275 | I31: -0.1896336182 | J31: 4.909265199e-06
C32: =C31+Sheet2!B$12 -> -4.4588 | D32: 0.9680182555 | E32: -4.45879 | F32: 0.9680157466 | G32: -0.2508846062 | I32: -0.2508797661 | J32: 4.840078786e-06
C33: =C32+Sheet2!B$12 -> -4.396 | D33: 0.9503651329 | E33: -4.39599 | F33: 0.9503620215 | G33: -0.3111415613 | I33: -0.3111368095 | J33: 4.751807213e-06
C34: =C33+Sheet2!B$12 -> -4.3332 | D34: 0.9289651539 | E34: -4.33319 | F34: 0.9289614522 | G34: -0.3701718271 | I34: -0.3701671823 | J34: 4.644806808e-06
C35: =C34+Sheet2!B$12 -> -4.2704 | D35: 0.9039026889 | E35: -4.27039 | F35: 0.9038984115 | G35: -0.4277426742 | I35: -0.4277381547 | J35: 4.519495927e-06
C36: =C35+Sheet2!B$12 -> -4.2076 | D36: 0.8752765478 | E36: -4.20759 | F36: 0.8752717115 | G36: -0.4836271269 | I36: -0.4836227506 | J36: 4.376362223e-06
C37: =C36+Sheet2!B$12 -> -4.1448 | D37: 0.8431995904 | E37: -4.14479 | F37: 0.8431942143 | G37: -0.5376048585 | I37: -0.5376006425 | J37: 4.215972474e-06
C38: =C37+Sheet2!B$12 -> -4.082 | D38: 0.8077982814 | E38: -4.08199 | F38: 0.8077923868 | G38: -0.5894630592 | I38: -0.5894590202 | J38: 4.038949194e-06
C39: =C38+Sheet2!B$12 -> -4.0192 | D39: 0.7692121922 | E39: -4.01919 | F39: 0.7692058022 | G39: -0.6389972758 | I39: -0.6389934298 | J39: 3.846030249e-06
C40: =C39+Sheet2!B$12 -> -3.9564 | D40: 0.7275934501 | E40: -3.95639 | F40: 0.72758659 | G40: -0.6860122176 | I40: -0.6860085797 | J40: 3.637966618e-06
C41: =C40+Sheet2!B$12 -> -3.8936 | D41: 0.6831061388 | E41: -3.89359 | F41: 0.6830988355 | G41: -0.7303225261 | I41: -0.7303191105 | J41: 3.415527472e-06
C42: =C41+Sheet2!B$12 -> -3.8308 | D42: 0.6359256514 | E42: -3.83079 | F42: 0.6359179339 | G42: -0.7717535058 | I42: -0.7717503261 | J42: 3.179617211e-06
C43: =C42+Sheet2!B$12 -> -3.768 | D43: 0.5862379992 | E43: -3.76799 | F43: 0.5862298978 | G43: -0.8101418133 | I43: -0.8101388821 | J43: 2.931177076e-06
C44: =C43+Sheet2!B$12 -> -3.7052 | D44: 0.5342390778 | E44: -3.70519 | F44: 0.5342306245 | G44: -0.8453361011 | I44: -0.8453334299 | J44: 2.671188659e-06
C45: =C44+Sheet2!B$12 -> -3.6424 | D45: 0.4801338954 | E45: -3.64239 | F45: 0.4801251234 | G45: -0.8771976141 | I45: -0.8771952134 | J45: 2.400659316e-06
C46: =C45+Sheet2!B$12 -> -3.5796 | D46: 0.424135764 | E46: -3.57959 | F46: 0.424126708 | G46: -0.9056007369 | I46: -0.9055986162 | J46: 2.12067157e-06
C47: =C46+Sheet2!B$12 -> -3.5168 | D47: 0.3664654586 | E47: -3.51679 | F47: 0.3664561543 | G47: -0.9304334889 | I47: -0.9304316566 | J47: 1.832316267e-06
C48: =C47+Sheet2!B$12 -> -3.454 | D48: 0.3073503471 | E48: -3.45399 | F48: 0.3073408311 | G48: -0.951597966 | I48: -0.9515964292 | J48: 1.53674673e-06
C49: =C48+Sheet2!B$12 -> -3.3912 | D49: 0.2470234933 | E49: -3.39119 | F49: 0.2470138031 | G49: -0.9690107262 | I49: -0.9690094911 | J49: 1.235107214e-06
C50: =C49+Sheet2!B$12 -> -3.3284 | D50: 0.1857227384 | E50: -3.32839 | F50: 0.1857129124 | G50: -0.9826031189 | I50: -0.9826021903 | J50: 9.286029183e-07
C51: =C50+Sheet2!B$12 -> -3.2656 | D51: 0.1236897635 | E51: -3.26559 | F51: 0.1236798403 | G51: -0.9923215556 | I51: -0.9923209372 | J51: 6.184389885e-07
C52: =C51+Sheet2!B$12 -> -3.2028 | D52: 0.06116913632 | E52: -3.20279 | F52: 0.06115915504 | G52: -0.9981277209 | I52: -0.9981274151 | J52: 3.058351794e-07
C53: =C52+Sheet2!B$12 -> -3.14 | D53: -0.001592652916 | E53: -3.13999 | F53: -0.001602652904 | G53: -0.9999987238 | I53: -0.9999987317 | J53: -7.973377736e-09
C54: =C53+Sheet2!B$12 -> -3.0772 | D54: -0.06434816305 | E54: -3.07719 | F54: -0.06435814232 | G54: -0.9979271876 | I54: -0.9979275093 | J54: -3.217513671e-07
C55: =C54+Sheet2!B$12 -> -3.0144 | D55: -0.1268499777 | E55: -3.01439 | F55: -0.1268598969 | G55: -0.9919212796 | I55: -0.9919219138 | J55: -6.342606761e-07
C56: =C55+Sheet2!B$12 -> -2.9516 | D56: -0.1888516808 | E56: -2.95159 | F56: -0.1888615008 | G56: -0.9820046783 | I56: -0.9820056225 | J56: -9.442685296e-07
C57: =C56+Sheet2!B$12 -> -2.8888 | D57: -0.2501088277 | E57: -2.88879 | F57: -0.2501185099 | G57: -0.9682164803 | I57: -0.9682177308 | J57: -1.250555623e-06
C58: =C57+Sheet2!B$12 -> -2.826 | D58: -0.3103799097 | E58: -2.82599 | F58: -0.3103894158 | G58: -0.9506110462 | I58: -0.9506125981 | J58: -1.551911927e-06
C59: =C58+Sheet2!B$12 -> -2.7632 | D59: -0.3694273051 | E59: -2.76319 | F59: -0.3694365977 | G59: -0.9292577862 | I59: -0.9292596334 | J59: -1.847148261e-06
C60: =C59+Sheet2!B$12 -> -2.7004 | D60: -0.4270182172 | E60: -2.70039 | F60: -0.4270272596 | G60: -0.9042408865 | I60: -0.9042430216 | J60: -2.135098757e-06
C61: =C60+Sheet2!B$12 -> -2.6376 | D61: -0.4829255911 | E61: -2.63759 | F61: -0.4829343477 | G61: -0.8756589774 | I61: -0.875661392 | J61: -2.414635609e-06
C62: =C61+Sheet2!B$12 -> -2.5748 | D62: -0.5369290097 | E62: -2.57479 | F62: -0.5369374459 | G62: -0.8436247441 | I62: -0.8436274288 | J62: -2.684658491e-06
C63: =C62+Sheet2!B$12 -> -2.512 | D63: -0.588815562 | E63: -2.51199 | F63: -0.5888236446 | G63: -0.8082644832 | I63: -0.8082674273 | J63: -2.944092913e-06
C64: =C63+Sheet2!B$12 -> -2.4492 | D64: -0.638380683 | E64: -2.44919 | F64: -0.6383883802 | G64: -0.769717604 | I64: -0.7697207959 | J64: -3.191911526e-06
C65: =C64+Sheet2!B$12 -> -2.3864 | D65: -0.6854289601 | E65: -2.38639 | F65: -0.6854362414 | G65: -0.7281360792 | I65: -0.7281395063 | J65: -3.427148638e-06
C66: =C65+Sheet2!B$12 -> -2.3236 | D66: -0.7297749033 | E66: -2.32359 | F66: -0.7297817401 | G66: -0.6836838459 | I66: -0.6836874948 | J66: -3.648882139e-06
C67: =C66+Sheet2!B$12 -> -2.2608 | D67: =SIN(x) -> -0.7712436769 | E67: -2.26079 | F67: -0.7712500422 | G67: =(F67-D67)/dxx -> -0.6365361589 | I67: -0.6365400152 | J67: -3.85622469e-06
C68: =C67+Sheet2!B$12 -> -2.198 | D68: -0.8096717883 | E68: -2.19799 | F68: -0.8096776571 | G68: -0.5868789002 | I68: -0.5868829485 | J68: =I68-G68 -> -4.048368775e-06
C69: =C68+Sheet2!B$12 -> -2.1352 | D69: -0.844907733 | E69: -2.13519 | F69: -0.8449130821 | G69: -0.5349078455 | I69: -0.53491207 | J69: -4.224534227e-06
C70: =C69+Sheet2!B$12 -> -2.0724 | D70: -0.8768125919 | E70: -2.07239 | F70: -0.8768174001 | G70: -0.4808278931 | I70: -0.4808322772 | J70: -4.384076276e-06
C71: =C70+Sheet2!B$12 -> -2.0096 | D71: -0.9052605785 | E71: -2.00959 | F71: -0.905264827 | G71: -0.4248522556 | I71: -0.4248567819 | J71: -4.526299968e-06
C72: =C71+Sheet2!B$12 -> -1.9468 | D72: -0.9301395354 | E72: -1.94679 | F72: -0.9301432074 | G72: -0.3672016193 | I72: -0.36720627 | J72: -4.650701127e-06
C73: =C72+Sheet2!B$12 -> -1.884 | D73: -0.9513513762 | E73: -1.88399 | F73: -0.9513544573 | G73: -0.3081032745 | I73: -0.3081080313 | J73: -4.756751297e-06
C74: =C73+Sheet2!B$12 -> -1.8212 | D74: -0.9688124724 | E74: -1.82119 | F74: -0.9688149503 | G74: -0.247790219 | I74: -0.2477950631 | J74: -4.844070122e-06
C75: =C74+Sheet2!B$12 -> -1.7584 | D75: -0.9824539828 | E75: -1.75839 | F75: -0.9824558478 | G75: -0.1865002396 | I75: -0.1865051519 | J75: -4.91227701e-06
C76: =C75+Sheet2!B$12 -> -1.6956 | D76: -0.9922221251 | E76: -1.69559 | F76: -0.9922233698 | G76: -0.1244749749 | I76: -0.124479936 | J76: -4.961112818e-06
C77: =C76+Sheet2!B$12 -> -1.6328 | D77: -0.998078388 | E77: -1.63279 | F77: -0.9980790076 | G77: -0.06195896206 | I77: -0.06196395245 | J77: -4.990386483e-06
C78: =C77+Sheet2!B$12 -> -1.57 | D78: -0.9999996829 | E78: -1.56999 | F78: -0.9999996749 | G78: 0.000801326705 | I78: 0.0007963267107 | J78: -4.999994245e-06
C79: =C78+Sheet2!B$12 -> -1.5072 | D79: -0.9979784351 | E79: -1.50719 | F79: -0.9979777995 | G79: 0.0635584562 | I79: 0.06355346632 | J79: -4.989882272e-06
C80: =C79+Sheet2!B$12 -> -1.4444 | D80: -0.9920226134 | E80: -1.44439 | F80: -0.9920213527 | G80: 0.1260650037 | I80: 0.1260600436 | J80: -4.96010891e-06
C81: =C80+Sheet2!B$12 -> -1.3816 | D81: -0.9821556988 | E81: -1.38159 | F81: -0.9821538181 | G81: 0.1880745344 | I81: 0.1880696236 | J81: -4.910778113e-06
C82: =C81+Sheet2!B$12 -> -1.3188 | D82: -0.9684165922 | E82: -1.31879 | F82: -0.9684140987 | G82: 0.2493425729 | I82: 0.2493377308 | J82: -4.842081656e-06
C83: =C82+Sheet2!B$12 -> -1.256 | D83: -0.9508594605 | E83: -1.25599 | F83: -0.9508563642 | G83: 0.3096275674 | I83: 0.3096228131 | J83: -4.754294942e-06
C84: =C83+Sheet2!B$12 -> -1.1932 | D84: -0.9295535236 | E84: -1.19319 | F84: -0.9295498366 | G84: 0.3686918415 | I84: 0.3686871937 | J84: -4.647762791e-06
C85: =C84+Sheet2!B$12 -> -1.1304 | D85: -0.9045827809 | E85: -1.13039 | F85: -0.9045785179 | G85: 0.4263025318 | I85: 0.4262980089 | J85: -4.522910558e-06
C86: =C85+Sheet2!B$12 -> -1.0676 | D86: -0.8760456809 | E86: -1.06759 | F86: -0.8760408586 | G86: 0.4822325057 | I86: 0.4822281255 | J86: -4.380222404e-06
C87: =C86+Sheet2!B$12 -> -1.0048 | D87: -0.8440547322 | E87: -1.00479 | F87: -0.8440493696 | G87: 0.5362612566 | I87: 0.5362570364 | J87: -4.220264642e-06
C88: =C87+Sheet2!B$12 -> -0.942 | D88: -0.8087360606 | E88: -0.94199 | F88: -0.8087301788 | G88: 0.588175774 | I88: 0.5881717303 | J88: -4.043665339e-06
C89: =C88+Sheet2!B$12 -> -0.8792 | D89: -0.7702289114 | E89: -0.87919 | F89: -0.7702225337 | G89: 0.6377713825 | I89: 0.6377675313 | J89: -3.851135859e-06
C90: =C89+Sheet2!B$12 -> -0.8164 | D90: -0.7286851009 | E90: -0.81639 | F90: -0.7286782523 | G90: 0.6848525492 | I90: 0.6848489058 | J90: -3.643403647e-06
C91: =C90+Sheet2!B$12 -> -0.7536 | D91: -0.6842684172 | E91: -0.75359 | F91: -0.6842611249 | G91: 0.7292336546 | I91: 0.7292302333 | J91: -3.421328877e-06
C92: =C91+Sheet2!B$12 -> -0.6908 | D92: -0.6371539753 | E92: -0.69079 | F92: -0.6371462679 | G92: 0.7707397243 | I92: 0.7707365385 | J92: -3.18575817e-06
C93: =C92+Sheet2!B$12 -> -0.628 | D93: -0.5875275257 | E93: -0.62799 | F93: -0.5875194336 | G93: 0.8092071186 | I93: 0.809204181 | J93: -2.937613623e-06
C94: =C93+Sheet2!B$12 -> -0.5652 | D94: -0.535584723 | E94: -0.56519 | F94: -0.5355762782 | G94: 0.8444841783 | I94: 0.8444815004 | J94: -2.677905996e-06
C95: =C94+Sheet2!B$12 -> -0.5024 | D95: -0.481530354 | E95: -0.50239 | F95: -0.4815215897 | G95: 0.8764318219 | I95: 0.8764294143 | J95: -2.407634355e-06
C96: =C95+Sheet2!B$12 -> -0.4396 | D96: -0.4255775303 | E96: -0.43959 | F96: -0.4255684811 | G96: 0.9049240945 | I96: 0.9049219666 | J96: -2.12787562e-06
C97: =C96+Sheet2!B$12 -> -0.3768 | D97: -0.3679468485 | E97: -0.37679 | F97: -0.3679375501 | G97: 0.929848664 | I97: 0.9298468243 | J97: -1.839716761e-06
C98: =C97+Sheet2!B$12 -> -0.314 | D98: -0.3088655201 | E98: -0.31399 | F98: -0.308856009 | G98: 0.9511072643 | I98: 0.9511057199 | J98: -1.544316573e-06
C99: =C98+Sheet2!B$12 -> -0.2512 | D99: -0.2485664758 | E99: -0.25119 | F99: -0.2485567896 | G99: 0.9686160822 | I99: 0.9686148394 | J99: -1.242816932e-06
C100: =C99+Sheet2!B$12 -> -0.1884 | D100: -0.1872874471 | E100: -0.18839 | F100: -0.1872776241 | G100: 0.9823060887 | I100: 0.9823051523 | J100: -9.364208448e-07
C101: =C100+Sheet2!B$12 -> -0.1256 | D101: -0.1252700295 | E101: -0.12559 | F101: -0.1252601083 | G101: 0.9921233101 | I101: 0.9921226838 | J101: -6.263329968e-07
C102: =C101+Sheet2!B$12 -> -0.0628 | D102: -0.06275872928 | E102: -0.06279 | F102: -0.06274874899 | G102: 0.9980290418 | I102: 0.998028728 | J102: -3.137767639e-07
C103: =C102+Sheet2!B$12 -> 1.196265309e-14 | D103: 1.196265309e-14 | E103: 1.000000001e-05 | F103: 1.000000001e-05 | G103: 1 | I103: 1 | J103: 1.666677907e-11
C104: =C103+Sheet2!B$12 -> 0.0628 | D104: 0.06275872928 | E104: 0.06281 | F104: 0.06276870956 | G104: 0.9980284142 | I104: 0.998028728 | J104: 3.138114937e-07
C105: =C104+Sheet2!B$12 -> 0.1256 | D105: 0.1252700295 | E105: 0.12561 | F105: 0.1252799507 | G105: 0.9921220574 | I105: 0.9921226838 | J105: 6.263649456e-07
C106: =C105+Sheet2!B$12 -> 0.1884 | D106: 0.1872874471 | E106: 0.18841 | F106: 0.1872972702 | G106: 0.9823042158 | I106: 0.9823051523 | J106: 9.364532289e-07
C107: =C106+Sheet2!B$12 -> 0.2512 | D107: 0.2485664758 | E107: 0.25121 | F107: 0.2485761619 | G107: 0.9686135966 | I107: 0.9686148394 | J107: 1.242847514e-06
C108: =C107+Sheet2!B$12 -> 0.314 | D108: 0.3088655201 | E108: 0.31401 | F108: 0.3088750311 | G108: 0.9511041756 | I108: 0.9511057199 | J108: 1.544340528e-06
C109: =C108+Sheet2!B$12 -> 0.3768 | D109: 0.3679468485 | E109: 0.37681 | F109: 0.367956147 | G109: 0.9298449845 | I109: 0.9298468243 | J109: 1.83974552e-06
C110: =C109+Sheet2!B$12 -> 0.4396 | D110: 0.4255775303 | E110: 0.43961 | F110: 0.4255865795 | G110: 0.9049198387 | I110: 0.9049219666 | J110: 2.127903432e-06
C111: =C110+Sheet2!B$12 -> 0.5024 | D111: 0.481530354 | E111: 0.50241 | F111: 0.4815391183 | G111: 0.8764270066 | I111: 0.8764294143 | J111: 2.407669345e-06
C112: =C111+Sheet2!B$12 -> 0.5652 | D112: 0.535584723 | E112: 0.56521 | F112: 0.5355931678 | G112: 0.8444788224 | I112: 0.8444815004 | J112: 2.677943089e-06
C113: =C112+Sheet2!B$12 -> 0.628 | D113: 0.5875275257 | E113: 0.62801 | F113: 0.5875356177 | G113: 0.8092012433 | I113: 0.809204181 | J113: 2.937653303e-06
C114: =C113+Sheet2!B$12 -> 0.6908 | D114: 0.6371539753 | E114: 0.69081 | F114: 0.6371616826 | G114: 0.7707333527 | I114: 0.7707365385 | J114: 3.185778447e-06
C115: =C114+Sheet2!B$12 -> 0.7536 | D115: 0.6842684172 | E115: 0.75361 | F115: 0.6842757095 | G115: 0.7292268119 | I115: 0.7292302333 | J115: 3.421353084e-06
C116: =C115+Sheet2!B$12 -> 0.8164 | D116: 0.7286851009 | E116: 0.81641 | F116: 0.7286919493 | G116: 0.6848452624 | I116: 0.6848489058 | J116: 3.643445238e-06
C117: =C116+Sheet2!B$12 -> 0.8792 | D117: 0.7702289114 | E117: 0.87921 | F117: 0.770235289 | G117: 0.6377636802 | I117: 0.6377675313 | J117: 3.85115848e-06
C118: =C117+Sheet2!B$12 -> 0.942 | D118: 0.8087360606 | E118: 0.94201 | F118: 0.8087419422 | G118: 0.5881676866 | I118: 0.5881717303 | J118: 4.043687651e-06
C119: =C118+Sheet2!B$12 -> 1.0048 | D119: 0.8440547322 | E119: 1.00481 | F119: 0.8440600947 | G119: 0.5362528161 | I119: 0.5362570364 | J119: 4.220272496e-06
C120: =C119+Sheet2!B$12 -> 1.0676 | D120: 0.8760456809 | E120: 1.06761 | F120: 0.8760505031 | G120: 0.4822237452 | I120: 0.4822281255 | J120: 4.3802366e-06
C121: =C120+Sheet2!B$12 -> 1.1304 | D121: 0.9045827809 | E121: 1.13041 | F121: 0.9045870439 | G121: 0.426293486 | I121: 0.4262980089 | J121: 4.522909069e-06
C122: =C121+Sheet2!B$12 -> 1.1932 | D122: 0.9295535236 | E122: 1.19321 | F122: 0.9295572104 | G122: 0.368682546 | I122: 0.3686871937 | J122: 4.647779301e-06
C123: =C122+Sheet2!B$12 -> 1.256 | D123: 0.9508594605 | E123: 1.25601 | F123: 0.9508625567 | G123: 0.3096180588 | I123: 0.3096228131 | J123: 4.754298948e-06
C124: =C123+Sheet2!B$12 -> 1.3188 | D124: 0.9684165922 | E124: 1.31881 | F124: 0.9684190855 | G124: 0.2493328887 | I124: 0.2493377308 | J124: 4.842082902e-06
C125: =C124+Sheet2!B$12 -> 1.3816 | D125: 0.9821556988 | E125: 1.38161 | F125: 0.9821575794 | G125: 0.1880647128 | I125: 0.1880696236 | J125: 4.910787647e-06
C126: =C125+Sheet2!B$12 -> 1.4444 | D126: 0.9920226134 | E126: 1.44441 | F126: 0.9920238739 | G126: 0.1260550835 | I126: 0.1260600436 | J126: 4.960111268e-06
C127: =C126+Sheet2!B$12 -> 1.5072 | D127: 0.9979784351 | E127: 1.50721 | F127: 0.9979790706 | G127: 0.06354847643 | I127: 0.06355346632 | J127: 4.989890268e-06
C128: =C127+Sheet2!B$12 -> 1.57 | D128: 0.9999996829 | E128: 1.57001 | F128: 0.9999996908 | G128: 0.0007913267153 | I128: 0.0007963267107 | J128: 4.999995456e-06
C129: =C128+Sheet2!B$12 -> 1.6328 | D129: 0.998078388 | E129: 1.63281 | F129: 0.9980777683 | G129: -0.06196894284 | I129: -0.06196395245 | J129: 4.99039636e-06
C130: =C129+Sheet2!B$12 -> 1.6956 | D130: 0.9922221251 | E130: 1.69561 | F130: 0.9922208802 | G130: -0.1244848971 | I130: -0.124479936 | J130: 4.961105761e-06
C131: =C130+Sheet2!B$12 -> 1.7584 | D131: =SIN(x) -> 0.9824539828 | E131: 1.75841 | F131: 0.9824521177 | G131: =(F131-D131)/dxx -> -0.1865100642 | I131: -0.1865051519 | J131: 4.912264147e-06
C132: =C131+Sheet2!B$12 -> 1.8212 | D132: 0.9688124724 | E132: 1.82121 | F132: 0.9688099944 | G132: -0.2477999071 | I132: -0.2477950631 | J132: =I132-G132 -> 4.844057932e-06
C133: =C132+Sheet2!B$12 -> 1.884 | D133: 0.9513513762 | E133: 1.88401 | F133: 0.9513482951 | G133: -0.308112788 | I133: -0.3081080313 | J133: 4.756749778e-06
C134: =C133+Sheet2!B$12 -> 1.9468 | D134: 0.9301395354 | E134: 1.94681 | F134: 0.9301358633 | G134: -0.3672109207 | I134: -0.36720627 | J134: 4.65069184e-06
C135: =C134+Sheet2!B$12 -> 2.0096 | D135: 0.9052605785 | E135: 2.00961 | F135: 0.9052563298 | G135: -0.4248613082 | I135: -0.4248567819 | J135: 4.526292019e-06
C136: =C135+Sheet2!B$12 -> 2.0724 | D136: 0.8768125919 | E136: 2.07241 | F136: 0.8768077835 | G136: -0.4808366612 | I136: -0.4808322772 | J136: 4.384065471e-06
C137: =C136+Sheet2!B$12 -> 2.1352 | D137: 0.844907733 | E137: 2.13521 | F137: 0.8449023839 | G137: -0.5349162946 | I137: -0.53491207 | J137: 4.224529423e-06
C138: =C137+Sheet2!B$12 -> 2.198 | D138: 0.8096717883 | E138: 2.19801 | F138: 0.8096659194 | G138: -0.5868869969 | I138: -0.5868829485 | J138: 4.048354497e-06
C139: =C138+Sheet2!B$12 -> 2.2608 | D139: 0.7712436769 | E139: 2.26081 | F139: 0.7712373114 | G139: -0.6365438714 | I139: -0.6365400152 | J139: 3.856205985e-06
C140: =C139+Sheet2!B$12 -> 2.3236 | D140: 0.7297749033 | E140: 2.32361 | F140: 0.7297680664 | G140: -0.6836911436 | I140: -0.6836874948 | J140: 3.648869136e-06
C141: =C140+Sheet2!B$12 -> 2.3864 | D141: 0.6854289601 | E141: 2.38641 | F141: 0.6854216786 | G141: -0.7281429335 | I141: -0.7281395063 | J141: 3.427135153e-06
C142: =C141+Sheet2!B$12 -> 2.4492 | D142: 0.638380683 | E142: 2.44921 | F142: 0.6383729857 | G142: -0.7697239878 | I142: -0.7697207959 | J142: 3.191893054e-06
C143: =C142+Sheet2!B$12 -> 2.512 | D143: 0.588815562 | E143: 2.51201 | F143: 0.5888074793 | G143: -0.8082703713 | I143: -0.8082674273 | J143: 2.944063702e-06
C144: =C143+Sheet2!B$12 -> 2.5748 | D144: 0.5369290097 | E144: 2.57481 | F144: 0.5369205734 | G144: -0.8436301134 | I144: -0.8436274288 | J144: 2.684646496e-06
C145: =C144+Sheet2!B$12 -> 2.6376 | D145: 0.4829255911 | E145: 2.63761 | F145: 0.4829168345 | G145: -0.8756638066 | I145: -0.875661392 | J145: 2.414618043e-06
C146: =C145+Sheet2!B$12 -> 2.7004 | D146: 0.4270182172 | E146: 2.70041 | F146: 0.4270091747 | G146: -0.9042451567 | I146: -0.9042430216 | J146: 2.135085439e-06
C147: =C146+Sheet2!B$12 -> 2.7632 | D147: 0.3694273051 | E147: 2.76321 | F147: 0.3694180125 | G147: -0.9292614805 | I147: -0.9292596334 | J147: 1.847129947e-06
C148: =C147+Sheet2!B$12 -> 2.826 | D148: 0.3103799097 | E148: 2.82601 | F148: 0.3103704035 | G148: -0.95061415 | I148: -0.9506125981 | J148: 1.551888616e-06
C149: =C148+Sheet2!B$12 -> 2.8888 | D149: 0.2501088277 | E149: 2.88881 | F149: 0.2500991456 | G149: -0.9682189814 | I149: -0.9682177308 | J149: 1.250538148e-06
C150: =C149+Sheet2!B$12 -> 2.9516 | D150: 0.1888516808 | E150: 2.95161 | F150: 0.1888418607 | G150: -0.9820065668 | I150: -0.9820056225 | J150: 9.442485863e-07
C151: =C150+Sheet2!B$12 -> 3.0144 | D151: 0.1268499777 | E151: 3.01441 | F151: 0.1268400585 | G151: -0.9919225481 | I151: -0.9919219138 | J151: 6.342385155e-07
C152: =C151+Sheet2!B$12 -> 3.0772 | D152: 0.06434816305 | E152: 3.07721 | F152: 0.06433818377 | G152: -0.9979278311 | I152: -0.9979275093 | J152: 3.217311209e-07
C153: =C152+Sheet2!B$12 -> 3.14 | D153: 0.001592652916 | E153: 3.14001 | F153: 0.001582652929 | G153: -0.9999987397 | I153: -0.9999987317 | J153: 7.953140035e-09
C154: =C153+Sheet2!B$12 -> 3.2028 | D154: -0.06116913632 | E154: 3.20281 | F154: -0.06117911759 | G154: -0.9981271092 | I154: -0.9981274151 | J154: -3.058560724e-07
C155: =C154+Sheet2!B$12 -> 3.2656 | D155: -0.1236897635 | E155: 3.26561 | F155: -0.1236996867 | G155: -0.9923203187 | I155: -0.9923209372 | J155: -6.184590925e-07
C156: =C155+Sheet2!B$12 -> 3.3284 | D156: -0.1857227384 | E156: 3.32841 | F156: -0.1857325644 | G156: -0.9826012617 | I156: -0.9826021903 | J156: -9.286225617e-07
C157: =C156+Sheet2!B$12 -> 3.3912 | D157: -0.2470234933 | E157: 3.39121 | F157: -0.2470331833 | G157: -0.9690082559 | I157: -0.9690094911 | J157: -1.235127908e-06
C158: =C157+Sheet2!B$12 -> 3.454 | D158: -0.3073503471 | E158: 3.45401 | F158: -0.307359863 | G158: -0.9515948925 | I158: -0.9515964292 | J158: -1.536761378e-06
C159: =C158+Sheet2!B$12 -> 3.5168 | D159: -0.3664654586 | E159: 3.51681 | F159: -0.3664747629 | G159: -0.9304298243 | I159: -0.9304316566 | J159: -1.83233564e-06
C160: =C159+Sheet2!B$12 -> 3.5796 | D160: -0.424135764 | E160: 3.57961 | F160: -0.4241448199 | G160: -0.9055964955 | I160: -0.9055986162 | J160: -2.120691236e-06
C161: =C160+Sheet2!B$12 -> 3.6424 | D161: -0.4801338954 | E161: 3.64241 | F161: -0.4801426673 | G161: -0.8771928128 | I161: -0.8771952134 | J161: -2.400677778e-06
C162: =C161+Sheet2!B$12 -> 3.7052 | D162: -0.5342390778 | E162: 3.70521 | F162: -0.5342475311 | G162: -0.8453307587 | I162: -0.8453334299 | J162: -2.671204523e-06
C163: =C162+Sheet2!B$12 -> 3.768 | D163: -0.5862379992 | E163: 3.76801 | F163: -0.5862461005 | G163: -0.8101359509 | I163: -0.8101388821 | J163: -2.93120016e-06
C164: =C163+Sheet2!B$12 -> 3.8308 | D164: -0.6359256514 | E164: 3.83081 | F164: -0.6359333689 | G164: -0.7717471465 | I164: -0.7717503261 | J164: -3.179629236e-06
C165: =C164+Sheet2!B$12 -> 3.8936 | D165: -0.6831061388 | E165: 3.89361 | F165: -0.6831134419 | G165: -0.730315695 | I165: -0.7303191105 | J165: -3.415541556e-06
C166: =C165+Sheet2!B$12 -> 3.9564 | D166: -0.7275934501 | E166: 3.95641 | F166: -0.7276003101 | G166: -0.6860049417 | I166: -0.6860085797 | J166: -3.637979877e-06
C167: =C166+Sheet2!B$12 -> 4.0192 | D167: -0.7692121922 | E167: 4.01921 | F167: -0.7692185821 | G167: -0.6389895837 | I167: -0.6389934298 | J167: -3.846094447e-06
C168: =C167+Sheet2!B$12 -> 4.082 | D168: -0.8077982814 | E168: 4.08201 | F168: -0.807804176 | G168: -0.5894549812 | I168: -0.5894590202 | J168: -4.039022411e-06
C169: =C168+Sheet2!B$12 -> 4.1448 | D169: -0.8431995904 | E169: 4.14481 | F169: -0.8432049663 | G169: -0.5375964265 | I169: -0.5376006425 | J169: -4.216027049e-06
C170: =C169+Sheet2!B$12 -> 4.2076 | D170: -0.8752765478 | E170: 4.20761 | F170: -0.875281384 | G170: -0.4836183742 | I170: -0.4836227506 | J170: -4.376414038e-06
C171: =C170+Sheet2!B$12 -> 4.2704 | D171: -0.9039026889 | E171: 4.27041 | F171: -0.9039069663 | G171: -0.4277336351 | I171: -0.4277381547 | J171: -4.519540238e-06
C172: =C171+Sheet2!B$12 -> 4.3332 | D172: -0.9289651539 | E172: 4.33321 | F172: -0.9289688555 | G172: -0.3701625374 | I172: -0.3701671823 | J172: -4.644851102e-06
C173: =C172+Sheet2!B$12 -> 4.396 | D173: -0.9503651329 | E173: 4.39601 | F173: -0.9503682442 | G173: -0.3111320576 | I173: -0.3111368095 | J173: -4.751846184e-06
C174: =C173+Sheet2!B$12 -> 4.4588 | D174: -0.9680182555 | E174: 4.45881 | F174: -0.9680207642 | G174: -0.250874926 | I174: -0.2508797661 | J174: -4.840111173e-06
C175: =C174+Sheet2!B$12 -> 4.5216 | D175: -0.9818549235 | E175: 4.52161 | F175: -0.9818568198 | G175: -0.1896287089 | I175: -0.1896336182 | J175: -4.909280754e-06
C176: =C175+Sheet2!B$12 -> 4.5844 | D176: -0.9918205853 | E176: 4.58441 | F176: -0.9918218617 | G176: -0.1276348723 | I176: -0.1276398314 | J176: -4.959108079e-06
C177: =C176+Sheet2!B$12 -> 4.6472 | D177: -0.9978759508 | E177: 4.64721 | F177: -0.9978766022 | G177: -0.06513782959 | I177: -0.06514281898 | J177: -4.989392207e-06
C178: =C177+Sheet2!B$12 -> 4.71 | D178: -0.9999971464 | E178: 4.71001 | F178: -0.9999971702 | G178: -0.002383978126 | I178: -0.002388978112 | J178: -4.999986243e-06
C179: =C178+Sheet2!B$12 -> 4.7728 | D179: -0.9981758092 | E179: 4.77281 | F179: -0.9981752054 | G179: 0.06037927228 | I179: 0.0603742814 | J179: -4.990877208e-06
C180: =C179+Sheet2!B$12 -> 4.8356 | D180: -0.99241912 | E180: 4.83561 | F180: -0.992417891 | G180: 0.1229044747 | I180: 0.1228995127 | J180: -4.962081919e-06
C181: =C180+Sheet2!B$12 -> 4.8984 | D181: -0.9827497747 | E181: 4.89841 | F181: -0.9827479253 | G181: 0.1849451209 | I181: 0.1849402072 | J181: -4.913740632e-06
C182: =C181+Sheet2!B$12 -> 4.9612 | D182: -0.9692058952 | E182: 4.96121 | F182: -0.9692034327 | G182: 0.2462566128 | I182: 0.2462517668 | J182: -4.846013641e-06
C183: =C182+Sheet2!B$12 -> 5.024 | D183: -0.9518408788 | E183: 5.02401 | F183: -0.9518378128 | G183: 0.3065972272 | I183: 0.306592468 | J183: -4.759192968e-06
C184: =C183+Sheet2!B$12 -> 5.0868 | D184: -0.9307231878 | E184: 5.08681 | F184: -0.9307195305 | G184: 0.3657290684 | I184: 0.3657244149 | J184: -4.653590063e-06
C185: =C184+Sheet2!B$12 -> 5.1496 | D185: -0.9059360797 | E185: 5.14961 | F185: -0.9059318455 | G185: 0.4234190068 | I185: 0.4234144771 | J185: -4.529659396e-06
C186: =C185+Sheet2!B$12 -> 5.2124 | D186: -0.8775772788 | E186: 5.21241 | F186: -0.8775724844 | G186: 0.4794395971 | I186: 0.4794352092 | J186: -4.387870185e-06
C187: =C186+Sheet2!B$12 -> 5.2752 | D187: -0.8457585907 | E187: 5.27521 | F187: -0.845753255 | G187: 0.5335699756 | I187: 0.5335657469 | J187: -4.228763621e-06
C188: =C187+Sheet2!B$12 -> 5.338 | D188: -0.8106054622 | E188: 5.33801 | F188: -0.8105996063 | G188: 0.5855967311 | I188: 0.5855926781 | J188: -4.053000556e-06
C189: =C188+Sheet2!B$12 -> 5.4008 | D189: -0.772256486 | E189: 5.40081 | F189: -0.7722501329 | G189: 0.6353147456 | I189: 0.6353108844 | J189: -3.861246693e-06
C190: =C189+Sheet2!B$12 -> 5.4636 | D190: -0.7308628546 | E190: 5.46361 | F190: -0.7308560294 | G190: 0.6825280038 | I190: 0.6825243495 | J190: -3.654281478e-06
C191: =C190+Sheet2!B$12 -> 5.5264 | D191: -0.6865877643 | E191: 5.52641 | F191: -0.6865804938 | G191: 0.7270503653 | I191: 0.7270469324 | J191: -3.432899658e-06
C192: =C191+Sheet2!B$12 -> 5.5892 | D192: -0.6396057714 | E192: 5.58921 | F192: -0.6395980844 | G192: 0.7687062988 | I192: 0.7687031008 | J192: -3.197987791e-06
C193: =C192+Sheet2!B$12 -> 5.652 | D193: -0.5901021047 | E193: 5.65201 | F193: -0.5900940313 | G193: 0.8073315738 | I193: 0.8073286233 | J193: -2.950471554e-06
C194: =C193+Sheet2!B$12 -> 5.7148 | D194: -0.5382719344 | E194: 5.71481 | F194: -0.5382635067 | G194: 0.8427739086 | I194: 0.8427712173 | J194: -2.691308777e-06
C195: =C194+Sheet2!B$12 -> 5.7776 | D195: =SIN(x) -> -0.4843196033 | E195: 5.77761 | F195: -0.4843108544 | G195: =(F195-D195)/dxx -> 0.8748935701 | I195: 0.8748911486 | J195: -2.421549632e-06
C196: =C195+Sheet2!B$12 -> 5.8404 | D196: -0.4284578209 | E196: 5.84041 | F196: -0.4284487853 | G196: 0.9035639252 | I196: 0.903561783 | J196: =I196-G196 -> -2.142244183e-06
C197: =C196+Sheet2!B$12 -> 5.9032 | D197: -0.3709068247 | E197: 5.90321 | F197: -0.370897538 | G197: 0.9286719398 | I197: 0.9286700853 | J197: -1.854487469e-06
C198: =C197+Sheet2!B$12 -> 5.966 | D198: -0.311893512 | E198: 5.96601 | F198: -0.3118840108 | G198: 0.9501186244 | I198: 0.950117065 | J198: -1.559416622e-06
C199: =C198+Sheet2!B$12 -> 6.0288 | D199: -0.2516505453 | E199: 6.02881 | F199: -0.2516408671 | G199: 0.9678194245 | I199: 0.9678181663 | J199: -1.258201714e-06
C200: =C199+Sheet2!B$12 -> 6.0916 | D200: -0.1904154354 | E200: 6.09161 | F200: -0.1904056183 | G200: 0.9817045539 | I200: 0.9817036019 | J200: -9.52023036e-07
... 205 more rows

Sheet Defining Function
A1: Defining a Function in Excel
A3: Computers have very specific rules you must follow when defining a function. If you don't, the program will either not work at all or will work incorrectly.
A5: 1. The Variable used should be the one named in the instruction, usually x, though sometimes y, t, Q (for an angle theta),
A6: or even x and y (for a function of two variables).
A8: 2. Order of Operations: There five arithmetic operations, addition (+), subtraction (-), multiplication (*), division (/), and exponentiation or power (^). When computers see any of these operation symbols, they perform the indicated steps in a very particular order. First, the power is done. Second, products and quotients of adjacent terms is done. Third, and last, sums and differences of adjacent terms are done. So, in 10*x^3 + 5*x – 7, say with x = 2, the first pass only calculates 2^3 and ignores the multiplications and the sums and differences to calculate 2^3 = 8. The second pass looks at 10*8 + 5*2 – 7 and only does the multiplications, so it produces 80 + 10 - 7. The third pass looks at the +’s and –‘s to produce 80 + 10 – 7 = 83.
A10: 3. Parentheses If you need an operation involving more than two adjacent terms, as in Ö4^3 + 6^2, the computer would take the square root of 4 to produce 2^3 + 6^2; it would then cube the 2 and square the 6 to produce 8 + 36; and finally it would add the 8 and the 36 to get 44. If you actually wanted the square root of the entire expression, you would need to use parentheses, as in Ö(4^3 + 6^2) to tell the computer to do all the operations inside the parentheses before taking the square root. Therefore, it would calculate (4^3 + 6^2) = 64 + 36 = 100 and then take the square root of Ö100 = 10.
A12: 4. Built-In Functions Computer programs have built-in functions for most common algebraic functions. In Excel, the square root function is denoted by SQRT(…), so SQRT(100) = 10. Alternatively, you could enter it as 100^.5 or 100^(1/2); notice that parentheses are needed to have the ½ done first. The common trig functions are SIN (…), COS (…), and TAN (…), where the arguments are automatically interpreted as being in radians, not degrees. The logarithm to the base 10 is represented by LOG (…) and the logarithm with the base e, known as the natural logarithm, is LN (…). The corresponding exponential function with base e is EXP (x). If x is the variable, then each of these would be SQRT (x), SIN (x), COS (x), TAN (x), LOG (x) (for log with base 10 ), LN (x) (for log with base e ), and EXP (x).

Sheet Sheet3
